fUST/lending_fUST_20250302
["ID","MTS","AMOUNT","RATE_DAILY","PERIOD"]
[355119496,1740920734139,-500.0,0.00021917,2]
[355119497,1740920734149,-500.0,0.00021917,2]
[355119498,1740920734159,-500.0,0.00021917,2]
[355119499,1740920734170,-333.36093072,0.00021917,2]
[355119500,1740920734181,-3091.23,0.00021917,2]
[355119501,1740920734191,-1000.0,0.00021917,2]
[355119502,1740920734202,-500.0,0.00021917,2]
[355119503,1740920734212,-500.0,0.00021917,2]
[355119504,1740920734223,-500.0,0.00021917,2]
[355119505,1740920734232,-500.0,0.00021917,2]
[355119506,1740920734242,-500.0,0.00021917,2]
[355119507,1740920734251,-500.0,0.00021917,2]
[355119508,1740920734261,-500.0,0.00021917,2]
[355119509,1740920734271,-1776.64,0.00021917,2]
[355119510,1740920734281,-500.0,0.00021917,2]
[355119511,1740920734291,-500.0,0.00021917,2]
[355119512,1740920734301,-500.0,0.00021917,2]
[355119513,1740920734311,-500.0,0.00021917,2]
[355119514,1740920734321,-500.0,0.00021917,2]
[355119515,1740920734331,-858.08,0.00021917,2]
[355119516,1740920734341,-500.0,0.00021917,2]
[355119517,1740920734350,-500.0,0.00021917,2]
[355119518,1740920734360,-500.0,0.00021917,2]
[355119519,1740920734370,-500.0,0.00021917,2]
[355119520,1740920734381,-500.0,0.00021917,2]
[355119521,1740920734391,-584.11,0.00021917,2]
[355119522,1740920734401,-500.0,0.00021917,2]
[355119523,1740920734410,-500.0,0.00021917,2]
[355119524,1740920734420,-500.0,0.00021917,2]
[355119525,1740920734430,-500.0,0.00021917,2]
[355119526,1740920734440,-500.0,0.00021917,2]
[355119527,1740920734450,-500.0,0.00021917,2]
[355119528,1740920734460,-500.0,0.00021917,2]
[355119529,1740920734469,-500.0,0.00021917,2]
[355119530,1740920734479,-500.0,0.00021917,2]
[355119531,1740920734488,-200.0,0.00021917,2]
[355119532,1740920734498,-500.0,0.00021917,2]
[355119533,1740920734507,-604.17,0.00021917,2]
[355119534,1740920734517,-500.0,0.00021917,2]
[355119535,1740920734527,-500.0,0.00021917,2]
[355119536,1740920734536,-500.0,0.00021917,2]
[355119537,1740920734546,-500.0,0.00021917,2]
[355119538,1740920734556,-500.0,0.00021917,2]
[355119539,1740920734565,-500.0,0.00021917,2]
[355119540,1740920734575,-805.0,0.00021917,2]
[355119541,1740920734584,-950.65,0.00021917,2]
[355119542,1740920734594,-500.0,0.00021917,2]
[355119543,1740920734603,-500.0,0.00021917,2]
[355119544,1740920734613,-500.0,0.00021917,2]
[355119545,1740920734623,-500.0,0.00021917,2]
[355119546,1740920734632,-517.75,0.00021917,2]
[355119547,1740920734642,-500.0,0.00021917,2]
[355119548,1740920734651,-500.0,0.00021917,2]
[355119549,1740920734660,-507.09019103,0.00021917,2]
[355119550,1740920734672,-500.0,0.00021917,2]
[355119551,1740920734682,-500.0,0.00021917,2]
[355119552,1740920734691,-331.82,0.00021917,2]
[355119553,1740920734701,-500.0,0.00021917,2]
[355119554,1740920734711,-500.0,0.00021917,2]
[355119555,1740920734720,-500.0,0.00021917,2]
[355119556,1740920734733,-500.0,0.00021917,2]
[355119557,1740920734752,-190.70063289,0.00021917,2]
[355119558,1740920734767,-500.0,0.00021917,2]
[355119559,1740920734778,-1158.87,0.00021917,2]
[355119560,1740920734788,-500.0,0.00021917,2]
[355119561,1740920734799,-500.0,0.00021917,2]
[355119562,1740920734810,-555.95,0.00021917,2]
[355119563,1740920734820,-500.0,0.00021917,2]
[355119564,1740920734830,-500.0,0.00021917,2]
[355119565,1740920734841,-500.0,0.00021917,2]
[355119566,1740920734852,-500.0,0.00021917,2]
[355119567,1740920734863,-500.0,0.00021917,2]
[355119568,1740920734873,-500.0,0.00021917,2]
[355119569,1740920734883,-500.0,0.00021917,2]
[355119570,1740920734893,-500.0,0.00021917,2]
[355119571,1740920734903,-500.0,0.00021917,2]
[355119572,1740920734913,-500.0,0.00021917,2]
[355119573,1740920734923,-500.0,0.00021917,2]
[355119574,1740920734934,-500.0,0.00021917,2]
[355119575,1740920734944,-500.0,0.00021917,2]
[355119576,1740920734954,-500.0,0.00021917,2]
[355119577,1740920734965,-2126.22,0.00021917,2]
[355119578,1740920734975,-34847.94,0.00021917,2]
[355119579,1740920734985,-500.0,0.00021917,2]
[355119580,1740920734995,-2027.56,0.00021917,2]
[355119581,1740920735006,-500.0,0.00021917,2]
[355119582,1740920735016,-1286.42,0.00021917,2]
[355119583,1740920735026,-500.0,0.00021917,2]
[355119584,1740920735036,-500.0,0.00021917,2]
[355119585,1740920735046,-500.0,0.00021917,2]
[355119586,1740920735056,-1136.9,0.00021917,2]
[355119587,1740920735065,-450.62731979,0.00021917,2]
[355119588,1740920735075,-626.71,0.00021917,2]
[355119589,1740920735085,-634.76,0.00021917,2]
[355119590,1740920735097,-500.0,0.00021917,2]
[355119591,1740920735107,-500.0,0.00021917,2]
[355119592,1740920735117,-167.52449521,0.00021917,2]
[355119593,1740920735127,-604.36,0.00021917,2]
[355119594,1740920735137,-500.0,0.00021917,2]
[355119595,1740920735147,-201.63844117,0.00021917,2]
[355119596,1740920735157,-500.0,0.00021917,2]
[355119597,1740920735167,-2200.52,0.00021917,2]
[355119598,1740920735177,-1305.85,0.00021917,2]
[355119599,1740920735186,-284.06,0.00021917,2]
[355119600,1740920735196,-2455.48,0.00021917,2]
[355119601,1740920735207,-1921.5,0.00021917,2]
[355119602,1740920735218,-1237.85,0.00021917,2]
[355119603,1740920735227,-217.07,0.00021917,2]
[355119604,1740920735236,-500.0,0.00021917,2]
[355119605,1740920735246,-729.43,0.00021917,2]
[355119606,1740920735256,-297.48,0.00021917,2]
[355119607,1740920735266,-576.55,0.00021917,2]
[355119608,1740920735275,-500.0,0.00021917,2]
[355119609,1740920735287,-527.58,0.00021917,2]
[355119610,1740920735296,-500.0,0.00021917,2]
[355119611,1740920735306,-500.0,0.00021917,2]
[355119612,1740920735316,-500.0,0.00021917,2]
[355119613,1740920735325,-500.0,0.00021917,2]
[355119614,1740920735336,-500.0,0.00021917,2]
[355119615,1740920735345,-150.0,0.00021955,2]
[355119616,1740920735355,-150.0,0.00021955,2]
[355119617,1740920735371,-404.38,0.00021955,2]
[355119618,1740920735380,-501.27417571,0.00021973,2]
[355119619,1740920735390,-500.0,0.00021973,2]
[355119620,1740920735400,-500.0,0.00021973,2]
[355119621,1740920735410,-500.0,0.00021973,2]
[355119622,1740920735420,-500.0,0.00021973,2]
[355119623,1740920735430,-500.0,0.00021973,2]
[355119624,1740920735440,-505.53265178,0.00021973,2]
[355119625,1740920735451,-500.0,0.00021973,2]
[355119626,1740920735461,-500.0,0.00021973,2]
[355119627,1740920735470,-500.0,0.00021973,2]
[355119628,1740920735480,-344.34868858,0.00021973,2]
[355119629,1740920735490,-341.61953063,0.00021973,2]
[355119630,1740920735500,-500.0,0.00021973,2]
[355119631,1740920735510,-500.0,0.00021973,2]
[355119632,1740920735520,-500.0,0.00021973,2]
[355119633,1740920735530,-500.0,0.00021973,2]
[355119634,1740920735540,-500.0,0.00021973,2]
[355119635,1740920735551,-500.0,0.00021973,2]
[355119636,1740920735560,-500.0,0.00021973,2]
[355119637,1740920735570,-525.96478642,0.00021973,2]
[355119638,1740920735580,-500.0,0.00021973,2]
[355119639,1740920735590,-500.0,0.00021973,2]
[355119640,1740920735600,-500.0,0.00021973,2]
[355119641,1740920735610,-160.0,0.0002199,3]
[355119642,1740920735620,-150.94527876,0.0002199,3]
[355119643,1740920743104,-500.0,0.00021917,2]
[355119644,1740920743126,-500.0,0.00021917,2]
[355119645,1740920743148,-24.50615325,0.0002199,3]
[355119646,1740920826086,-509.71697351,0.00021073,2]
[355119647,1740920826108,-201.08354925,0.00021073,2]
[355119648,1740920826131,-154.95356,0.00021533,2]
[355119649,1740920826153,-300.0,0.00021916,2]
[355119650,1740920826177,-500.0,0.00021917,2]
[355119651,1740920826200,-500.0,0.00021917,2]
[355119652,1740920826222,-500.0,0.00021917,2]
[355119653,1740920826244,-581.05,0.00021917,2]
[355119654,1740920826266,-260.84685554,0.00021917,2]
[355119655,1740920826295,-239.15314446,0.00021917,2]
[355119656,1740920826318,-1.28767585,0.00021917,2]
[355119657,1740920835111,-474.96012506,0.00021917,2]
[355119909,1740921032131,-154.95356,0.00021533,2]
[355119911,1740921032143,-2147.52262339,0.00021817,2]
[355119913,1740921032154,-164.35,0.00021907,2]
[355119915,1740921032165,-164.35,0.00021907,2]
[355119917,1740921032175,-164.35,0.00021907,2]
[355119919,1740921032186,-164.35,0.00021907,2]
[355119921,1740921032196,-164.35,0.00021907,2]
[355119923,1740921032206,-164.35,0.00021907,2]
[355119925,1740921032217,-164.35,0.00021907,2]
[355119927,1740921032227,-174.86926528,0.00021915,2]
[355119929,1740921032240,-125.13073472,0.00021915,2]
[355119931,1740921032251,-500.0,0.00021916,2]
[355119933,1740921032261,-500.0,0.00021916,2]
[355119935,1740921032271,-500.0,0.00021916,2]
[355119937,1740921032282,-500.0,0.00021916,2]
[355119939,1740921032293,-500.0,0.00021916,2]
[355119942,1740921032304,-500.0,0.00021916,2]
[355119944,1740921032315,-500.0,0.00021916,2]
[355119946,1740921032325,-500.0,0.00021916,2]
[355119948,1740921032336,-444.40714134,0.00021916,2]
[355119950,1740921032347,-500.0,0.00021916,2]
[355119952,1740921032358,-500.0,0.00021916,2]
[355119954,1740921032368,-500.0,0.00021916,2]
[355119956,1740921032379,-500.0,0.00021916,2]
[355119958,1740921032390,-500.0,0.00021916,2]
[355119960,1740921032400,-500.0,0.00021916,2]
[355119962,1740921032411,-500.0,0.00021916,2]
[355119964,1740921032422,-500.0,0.00021916,2]
[355119966,1740921032432,-500.0,0.00021916,2]
[355119968,1740921032443,-500.0,0.00021916,2]
[355119971,1740921032455,-500.0,0.00021916,2]
[355119973,1740921032467,-500.0,0.00021916,2]
[355119975,1740921032479,-500.0,0.00021916,2]
[355119977,1740921032490,-500.0,0.00021916,2]
[355119979,1740921032500,-500.0,0.00021916,2]
[355119982,1740921032512,-500.0,0.00021916,2]
[355120007,1740921032701,-500.0,0.00021916,2]
[355120010,1740921032778,-500.0,0.00021916,2]
[355120013,1740921032788,-500.0,0.00021916,2]
[355120015,1740921032798,-500.0,0.00021916,2]
[355120017,1740921032808,-500.0,0.00021916,2]
[355120018,1740921032818,-500.0,0.00021916,2]
[355120020,1740921032828,-500.0,0.00021916,2]
[355120022,1740921032838,-500.0,0.00021916,2]
[355120024,1740921032851,-500.0,0.00021916,2]
[355120026,1740921032860,-500.0,0.00021916,2]
[355120028,1740921032870,-500.0,0.00021916,2]
[355120030,1740921032880,-544.44071414,0.00021916,2]
[355120032,1740921032891,-500.0,0.00021916,2]
[355120034,1740921032900,-500.0,0.00021916,2]
[355120036,1740921032910,-500.0,0.00021916,2]
[355120038,1740921032921,-500.0,0.00021916,2]
[355120040,1740921032931,-500.0,0.00021917,2]
[355120042,1740921032940,-485.48032567,0.00021917,2]
[355120044,1740921032952,-822.33,0.00021917,2]
[355120046,1740921032962,-162.44933542,0.00021917,2]
[355120049,1740921032983,-337.55066458,0.00021917,2]
[355120051,1740921032992,-54.27933542,0.00021917,2]
[355120666,1740921043877,-0.92247075,0.00021917,2]
[355121639,1740921325715,-1069.9474921,0.00050039,120]
[355121640,1740921325767,-933.66578415,0.00050039,120]
[355121641,1740921325812,-1587.06702344,0.00050039,120]
[355121642,1740921325857,-1034.88537983,0.00050039,120]
[355121643,1740921325903,-2534.34588424,0.00050039,120]
[355121644,1740921325951,-310.83787776,0.00050039,120]
[355121645,1740921326003,-990.20953588,0.00050039,120]
[355121646,1740921326051,-1681.21054541,0.00050039,120]
[355121647,1740921326102,-438.56550993,0.00050039,120]
[355121648,1740921326151,-1727.03178366,0.00050039,120]
[355121649,1740921326199,-608.52118958,0.00050039,120]
[355121650,1740921326247,-510182.66307763,0.00050039,30]
[355121651,1740921326293,-3805.6172548,0.00050039,120]
[355121652,1740921326341,-419.03263431,0.00050039,120]
[355121653,1740921326387,-212.09815207,0.00050039,120]
[355121654,1740921326432,-223.16356871,0.00050039,120]
[355121655,1740921326478,-311.37820144,0.00050039,120]
[355121656,1740921326524,-200.17304636,0.00050039,120]
[355121657,1740921326569,-2000.0,0.00050039,60]
[355121658,1740921326610,-10614.58260418,0.00050039,60]
[355121659,1740921326651,-5010.88312084,0.00050039,30]
[355121660,1740921326698,-15359.2249538,0.00050039,32]
[355121661,1740921326741,-16108.62549812,0.00050039,120]
[355121662,1740921326782,-33207.8371712,0.00050039,120]
[355121663,1740921326821,-6540.14941198,0.00050039,120]
[355121664,1740921326859,-4090.7727338,0.00050039,120]
[355121665,1740921326898,-500.0,0.00050039,120]
[355121666,1740921326940,-500.0,0.00050039,120]
[355121667,1740921326981,-500.0,0.00050039,120]
[355121668,1740921327026,-500.0,0.00050039,120]
[355121669,1740921327070,-500.0,0.00050039,120]
[355121670,1740921327112,-500.0,0.00050039,120]
[355121671,1740921327152,-1000.0,0.00050039,120]
[355121672,1740921327192,-500.0,0.00050039,90]
[355121673,1740921327237,-274297.51056478,0.00050039,120]
[355121674,1740921334997,-225702.48943522,0.00050039,120]
[355121675,1740921335039,-7000.0,0.00050039,120]
[355121676,1740921335081,-9126.48956889,0.00050039,120]
[355121677,1740921335122,-5000.0,0.00050039,120]
[355121678,1740921335169,-5000.0,0.00050039,120]
[355121679,1740921335215,-5000.0,0.00050039,120]
[355121680,1740921335259,-5000.0,0.00050039,120]
[355121681,1740921335301,-5000.0,0.00050039,120]
[355121682,1740921335341,-5000.0,0.00050039,120]
[355121683,1740921335384,-1569.1908437,0.00050039,35]
[355121684,1740921335427,-517.81839436,0.00050039,120]
[355121685,1740921335471,-5000.0,0.00050039,120]
[355121686,1740921335513,-5000.0,0.00050039,120]
[355121687,1740921335559,-5000.0,0.00050039,120]
[355121688,1740921335604,-5000.0,0.00050039,120]
[355121689,1740921335647,-3453.06964717,0.00050039,120]
[355121690,1740921335692,-7000.0,0.00050039,120]
[355121691,1740921335737,-1595630.94211066,0.00050039,120]
[355121692,1740921347078,-1404367.87434509,0.00050039,120]
[355121693,1740921347117,-495632.12565491,0.00050039,30]
[355121694,1740921351750,-450278.08254171,0.00050039,30]
[355121695,1740921351789,-2000.0,0.00050039,30]
[355121696,1740921351825,-2000.0,0.00050039,30]
[355121697,1740921351862,-25000.0,0.00050039,30]
[355121698,1740921351899,-25000.0,0.00050039,31]
[355121699,1740921351934,-50000.0,0.00050039,30]
[355121700,1740921351970,-115152.15212172,0.00050039,30]
[355121701,1740921352007,-8998.97089057,0.00050039,30]
[355121702,1740921352044,-40313.30095619,0.00050039,30]
[355121703,1740921352093,-1735.11417397,0.00050039,120]
[355121704,1740921352135,-600000.39947222,0.00050039,120]
[355121705,1740921352176,-13248.0249593,0.00050039,120]
[355121706,1740921352214,-3856.95884548,0.00050039,120]
[355121707,1740921352255,-857.3,0.00050039,30]
[355121708,1740921352296,-1243.0509428,0.00050039,35]
[355121709,1740921352335,-2895.72188814,0.00050039,120]
[355121710,1740921352374,-249.0,0.00050039,30]
[355121711,1740921352412,-335.0,0.00050039,30]
[355121712,1740921352450,-415.0,0.00050039,30]
[355121713,1740921352486,-474147.0790277,0.00050039,30]
[355121714,1740921352523,-170.88266961,0.00050039,30]
[355121715,1740921352559,-15238.51815309,0.00050039,60]
[355121716,1740921352598,-66865.4433575,0.00050039,120]
[355121717,1740921359505,-96606.6622756,0.00050039,120]
[355121718,1740921359545,-4571.2563067,0.00050039,120]
[355121719,1740921359583,-1185.1841786,0.00050039,35]
[355121720,1740921359623,-1297.0,0.00050039,71]
[355121721,1740921359660,-1490.96588298,0.00050039,120]
[355121722,1740921359696,-1000.0,0.00050039,60]
[355121723,1740921359732,-10000.0,0.00050039,120]
[355121724,1740921359772,-10000.0,0.00050039,30]
[355121725,1740921359809,-3000.0,0.00050039,60]
[355121726,1740921359847,-300.0,0.00050039,60]
[355121727,1740921359883,-300.0,0.00050039,60]
[355121728,1740921359919,-400.0,0.00050039,60]
[355121729,1740921359958,-506.89,0.00050039,60]
[355121730,1740921359995,-250.0,0.00050039,120]
[355121731,1740921360034,-150.0,0.00050039,120]
[355121732,1740921360073,-150.0,0.00050039,120]
[355121733,1740921360113,-150.0,0.00050039,120]
[355121734,1740921360151,-150.0,0.00050039,120]
[355121735,1740921360193,-150.0,0.00050039,120]
[355121736,1740921360231,-295.974,0.00050039,120]
[355121737,1740921360271,-150.0,0.00050039,120]
[355121738,1740921360314,-150.0,0.00050039,120]
[355121739,1740921360355,-150.0,0.00050039,120]
[355121740,1740921360395,-151.03,0.00050039,120]
[355121741,1740921360434,-150.0,0.00050039,120]
[355121742,1740921360471,-150.0,0.00050039,120]
[355121743,1740921360508,-193.505,0.00050039,120]
[355121744,1740921360546,-150.0,0.00050039,120]
[355121745,1740921360778,-150.0,0.00050039,120]
[355121746,1740921360816,-150.0,0.00050039,120]
[355121747,1740921360856,-150.0,0.00050039,120]
[355121748,1740921360895,-150.0,0.00050039,120]
[355121749,1740921360933,-250.0,0.00050039,120]
[355121750,1740921360971,-150.0,0.00050039,120]
[355121751,1740921361010,-150.0,0.00050039,120]
[355121752,1740921361057,-150.0,0.00050039,120]
[355121753,1740921361099,-150.0,0.00050039,120]
[355121754,1740921361141,-150.0,0.00050039,120]
[355121755,1740921361180,-150.419,0.00050039,120]
[355121756,1740921361218,-250.0,0.00050039,120]
[355121757,1740921361255,-150.0,0.00050039,120]
[355121758,1740921361295,-150.0,0.00050039,120]
[355121759,1740921361332,-150.0,0.00050039,120]
[355121760,1740921361372,-150.0,0.00050039,120]
[355121761,1740921361412,-253.917,0.00050039,120]
[355121762,1740921361451,-279.722,0.00050039,120]
[355121763,1740921361492,-2279.032,0.00050039,120]
[355121764,1740921361532,-2279.0,0.00050039,120]
[355121765,1740921361569,-2279.0,0.00050039,120]
[355121766,1740921361607,-2279.0,0.00050039,120]
[355121767,1740921361642,-2279.0,0.00050039,120]
[355121768,1740921361678,-2279.0,0.00050039,120]
[355121769,1740921361713,-2279.0,0.00050039,120]
[355121770,1740921361750,-2279.0,0.00050039,120]
[355121771,1740921361789,-2279.0,0.00050039,120]
[355121772,1740921361829,-2279.0,0.00050039,120]
[355121773,1740921361866,-2279.0,0.00050039,120]
[355121774,1740921361903,-2279.0,0.00050039,120]
[355121775,1740921361940,-2279.0,0.00050039,120]
[355121776,1740921361981,-2279.0,0.00050039,120]
[355121777,1740921362024,-2279.0,0.00050039,120]
[355121778,1740921362061,-2279.0,0.00050039,120]
[355121779,1740921362097,-2279.0,0.00050039,120]
[355121780,1740921362133,-2279.0,0.00050039,120]
[355121781,1740921362171,-2279.0,0.00050039,120]
[355121782,1740921362208,-2279.0,0.00050039,120]
[355121783,1740921362244,-2279.0,0.00050039,120]
[355121784,1740921362279,-2279.0,0.00050039,120]
[355121785,1740921362313,-5000.0,0.00050039,120]
[355121786,1740921362349,-500.0,0.00050039,30]
[355121787,1740921362384,-500.0,0.00050039,30]
[355121788,1740921362420,-500.0,0.00050039,30]
[355121789,1740921362457,-500.0,0.00050039,30]
[355121790,1740921362493,-500.0,0.00050039,30]
[355121791,1740921362531,-500.0,0.00050039,30]
[355121792,1740921362566,-500.0,0.00050039,30]
[355121793,1740921362605,-500.0,0.00050039,30]
[355121794,1740921362644,-494.71201257,0.00050039,30]
[355121795,1740921362681,-500.0,0.00050039,30]
[355121796,1740921362719,-26699.85966342,0.00050039,30]
[355121797,1740921362754,-241.17,0.00050039,120]
[355121798,1740921362796,-150.0,0.00050039,120]
[355121799,1740921362833,-150.0,0.00050039,120]
[355121800,1740921362872,-150.0,0.00050039,120]
[355121801,1740921362911,-397.0,0.00050039,120]
[355121802,1740921362949,-397.0,0.00050039,120]
[355121803,1740921362988,-150.0,0.00050039,120]
[355121804,1740921363027,-397.0,0.00050039,120]
[355121805,1740921363071,-150.0,0.00050039,120]
[355121806,1740921363112,-150.0,0.00050039,120]
[355121807,1740921363156,-397.0,0.00050039,120]
[355121808,1740921363197,-397.0,0.00050039,120]
[355121809,1740921363239,-150.0,0.00050039,120]
[355121810,1740921363278,-150.0,0.00050039,120]
[355121811,1740921363317,-397.0,0.00050039,120]
[355121812,1740921363356,-397.0,0.00050039,120]
[355121813,1740921363395,-150.0,0.00050039,120]
[355121814,1740921363435,-397.0,0.00050039,120]
[355121815,1740921363474,-150.0,0.00050039,120]
[355121816,1740921363513,-150.0,0.00050039,120]
[355121817,1740921363557,-397.0,0.00050039,120]
[355121818,1740921363597,-397.0,0.00050039,120]
[355121819,1740921363635,-150.0,0.00050039,120]
[355121820,1740921363674,-150.0,0.00050039,120]
[355121821,1740921363713,-397.0,0.00050039,120]
[355121822,1740921363752,-150.0,0.00050039,120]
[355121823,1740921363794,-150.0,0.00050039,120]
[355121824,1740921363835,-397.0,0.00050039,120]
[355121825,1740921363875,-150.0,0.00050039,120]
[355121826,1740921363916,-397.0,0.00050039,120]
[355121827,1740921363959,-150.0,0.00050039,120]
[355121828,1740921364002,-397.0,0.00050039,120]
[355121829,1740921364047,-150.0,0.00050039,120]
[355121830,1740921364088,-397.0,0.00050039,120]
[355121831,1740921364130,-296.882,0.00050039,120]
[355121832,1740921364172,-1957.0,0.00050039,120]
[355121833,1740921364214,-1957.0,0.00050039,120]
[355121834,1740921364256,-1957.0,0.00050039,120]
[355121835,1740921364299,-553.421,0.00050039,120]
[355121836,1740921364340,-1957.0,0.00050039,120]
[355121837,1740921364384,-539.0,0.00050039,120]
[355121838,1740921364424,-1957.0,0.00050039,120]
[355121839,1740921364620,539.0,0.00050039,120]
[355121840,1740921364828,1957.0,0.00050039,120]
[355121841,1740921364885,539.0,0.00050039,120]
[355121842,1740921364944,1957.0,0.00050039,120]
[355121843,1740921364998,539.0,0.00050039,120]
[355121844,1740921365149,1957.0,0.00050039,120]
[355121845,1740921365192,539.0,0.00050039,120]
[355121846,1740921365246,1957.0,0.00050039,120]
[355121847,1740921365297,539.0,0.00050039,120]
[355121848,1740921365350,1957.0,0.00050039,120]
[355121849,1740921365431,539.0,0.00050039,120]
[355121850,1740921365506,1957.0,0.00050039,120]
[355121851,1740921365548,539.0,0.00050039,120]
[355121852,1740921365683,539.0,0.00050039,120]
[355121853,1740921365725,539.0,0.00050039,120]
[355121854,1740921365766,1957.0,0.00050039,120]
[355121855,1740921365820,539.0,0.00050039,120]
[355121856,1740921365866,539.0,0.00050039,120]
[355121857,1740921366060,1957.0,0.00050039,120]
[355121858,1740921366104,539.0,0.00050039,120]
[355121859,1740921366158,1957.0,0.00050039,120]
[355121860,1740921366203,539.0,0.00050039,120]
[355121861,1740921366248,1957.0,0.00050039,120]
[355121862,1740921366313,539.0,0.00050039,120]
[355121863,1740921366506,539.0,0.00050039,120]
[355121864,1740921366866,1957.0,0.00050039,120]
[355121865,1740921366978,539.0,0.00050039,120]
[355121866,1740921367361,1957.0,0.00050039,120]
[355121867,1740921367530,539.0,0.00050039,120]
[355121868,1740921367904,1957.0,0.00050039,120]
[355121869,1740921368015,539.0,0.00050039,120]
[355121870,1740921368367,1957.0,0.00050039,120]
[355121871,1740921368481,539.0,0.00050039,120]
[355121872,1740921368993,1957.0,0.00050039,120]
[355121873,1740921369042,539.0,0.00050039,120]
[355121874,1740921369337,1957.0,0.00050039,120]
[355121875,1740921369771,1945.537,0.00050039,120]
[355121876,1740921378917,759.1846,0.00050039,30]
[355121877,1740921434968,300.0,0.00050039,60]
[355121878,1740921435360,300.0,0.00050039,60]
[355121879,1740921435842,400.0,0.00050039,60]
[355121880,1740921446658,1000.0,0.00050042,30]
[355121881,1740921465880,1000.0,0.00050042,30]
[355121882,1740921467572,1000.0,0.00050042,30]
[355121883,1740921479043,1143.0,0.00050042,30]
[355121884,1740921486762,1606824.67608013,0.00050042,120]
[355121893,1740921932137,-176.489594,0.00020161,2]
[355121894,1740921932160,-300.0,0.00020307,2]
[355121895,1740921932183,-21.1525325,0.00020308,2]
[355121897,1740921950088,-1864.47865847,0.00020308,2]
[355121900,1740921959071,1204.75091512,2.238e-05,2]
[355121904,1740921997110,-169.7418439,0.00020308,2]
[355121907,1740922035124,-287.70283721,0.00020308,2]
[355121909,1740922036084,-7656.92412792,0.00020308,2]
[355121910,1740922036107,-1903.02251046,0.0002086,2]
[355121911,1740922036129,-300.0,0.00020876,2]
[355121912,1740922036152,-203.141321,0.00020877,2]
[355121913,1740922036181,-500.0,0.00020926,2]
[355121914,1740922036203,-208.58405207,0.00020926,2]
[355121915,1740922036230,-154.44407141,0.00020926,2]
[355121916,1740922036258,-500.0,0.00020926,2]
[355121917,1740922036285,-500.0,0.00020926,2]
[355121918,1740922036311,-500.0,0.00020926,2]
[355121919,1740922036343,-500.0,0.00020926,2]
[355121920,1740922036371,-500.0,0.00020926,2]
[355121921,1740922036399,-500.0,0.00020926,2]
[355121922,1740922036426,-500.0,0.00020926,2]
[355121923,1740922036453,-500.0,0.00020926,2]
[355121924,1740922036476,-6404.52753106,0.00020927,2]
[355121925,1740922036505,-229.02305622,0.00020927,2]
[355121927,1740922046075,-172.6811036,0.00020927,2]
[355121929,1740922050083,-243.46767086,0.00020927,2]
[355121930,1740922050117,-394.37037095,0.00020927,2]
[355121931,1740922054095,-229.75037585,0.00020927,2]
[355121951,1740922119676,51.76472387,0.000145,2]
[355121952,1740922119715,58664.87616901,0.000145,2]
[355121958,1740922146492,-659.92136157,0.00019,2]
[355121959,1740922146514,-124.7705125,0.00020208,2]
[355121960,1740922147462,-73.15909501,0.00020208,2]